fUSD/lending_fUSD_20250404
["ID","MTS","AMOUNT","RATE_DAILY","PERIOD"]
[357153840,1743803439527,-1353.6,0.00049214,120]
[357153841,1743803439538,-500.0,0.00049214,120]
[357153842,1743803439548,-936.25,0.00049214,120]
[357153843,1743803439563,-500.0,0.00049214,120]
[357153844,1743803439572,-608.49,0.00049214,120]
[357153845,1743803439582,-708.91,0.00049214,120]
[357153846,1743803439591,-3600.44,0.00049214,120]
[357153847,1743803439601,-500.0,0.00049214,120]
[357153848,1743803439611,-500.0,0.00049214,120]
[357153849,1743803439621,-500.0,0.00049214,120]
[357153850,1743803439630,-10791.06,0.00049214,2]
[357153851,1743803439641,-500.0,0.00049214,120]
[357153852,1743803439650,-487.93772755,0.00049214,120]
[357153853,1743803439659,-500.0,0.00049214,120]
[357153854,1743803439668,-500.0,0.00049214,120]
[357153855,1743803439678,-695.12,0.00049214,120]
[357153856,1743803439687,-1035.94,0.00049214,120]
[357153857,1743803439696,-500.0,0.00049214,120]
[357153858,1743803439706,-599.69,0.00049214,120]
[357153860,1743803439715,-500.0,0.00049214,120]
[357153862,1743803439724,-1928.54,0.00049214,120]
[357153863,1743803439734,-591.7,0.00049214,120]
[357153864,1743803439743,-500.0,0.00049214,120]
[357153865,1743803439752,-500.0,0.00049214,120]
[357153866,1743803439761,-500.0,0.00049214,120]
[357153868,1743803439770,-500.0,0.00049214,120]
[357153870,1743803439780,-500.0,0.00049214,120]
[357153872,1743803439791,-500.0,0.00049214,120]
[357153874,1743803439801,-500.0,0.00049214,120]
[357153875,1743803439810,-579.55669746,0.00049215,21]
[357153876,1743803439819,-1781.6592,0.00049215,2]
[357153877,1743803439828,-75323.1705,0.00049215,2]
[357153878,1743803439837,-1465.4987,0.00049215,2]
[357153879,1743803439846,-150.0,0.00049225,7]
[357153880,1743803439855,-1979.18829682,0.00049233,15]
[357153881,1743803439864,-10026.0,0.00049237,2]
[357153882,1743803439873,-888.31,0.00049288,30]
[357153883,1743803439882,-152.82,0.00049288,30]
[357153884,1743803439891,-174.7,0.00049288,30]
[357153885,1743803439901,-764.21746112,0.00049297,15]
[357153886,1743803439909,-306.0,0.00049299,7]
[357153887,1743803439918,-500.0,0.00049299,2]
[357153888,1743803439927,-500.0,0.00049299,2]
[357153889,1743803439937,-500.0,0.00049299,120]
[357153890,1743803439946,-500.0,0.00049299,120]
[357153891,1743803439955,-500.0,0.00049299,120]
[357153892,1743803439964,-500.0,0.00049299,120]
[357153893,1743803439974,-500.0,0.00049299,120]
[357153894,1743803439983,-610.37,0.00049299,120]
[357153895,1743803439992,-500.0,0.00049299,120]
[357153896,1743803440001,-500.0,0.00049299,120]
[357153897,1743803440010,-500.0,0.00049299,30]
[357153898,1743803440019,-180.20171913,0.00049299,120]
[357153899,1743803440029,-519.52,0.00049299,120]
[357153900,1743803440038,-500.0,0.00049299,120]
[357153901,1743803440049,-500.0,0.00049299,120]
[357153902,1743803440058,-525.85,0.00049299,120]
[357153903,1743803440067,-500.0,0.00049299,120]
[357153904,1743803440077,-500.0,0.00049299,120]
[357153905,1743803440086,-500.0,0.00049299,120]
[357153906,1743803440096,-500.0,0.00049299,120]
[357153907,1743803440106,-730.87,0.00049299,120]
[357153908,1743803440115,-743.25,0.00049299,120]
[357153909,1743803440124,-500.0,0.00049299,120]
[357153910,1743803440133,-528.89,0.00049299,120]
[357153911,1743803440142,-500.0,0.00049299,2]
[357153912,1743803440151,-500.0,0.00049299,120]
[357153913,1743803440160,-543.777,0.000493,120]
[357153914,1743803440169,-543.777,0.000493,120]
[357153915,1743803440179,-543.778,0.000493,120]
[357153916,1743803440188,-543.777,0.000493,120]
[357153917,1743803440197,-543.778,0.000493,120]
[357153918,1743803440207,-12890.5122198,0.00049304,4]
[357153919,1743803440215,-38671.5366593,0.00049305,4]
[357153920,1743803440225,-166.36460418,0.00049309,10]
[357153921,1743803440235,-500.0,0.00049314,120]
[357153922,1743803440247,-694.72,0.00049314,120]
[357153923,1743803440257,-500.0,0.00049314,120]
[357153924,1743803440267,-500.0,0.00049314,30]
[357153925,1743803440276,-500.0,0.00049314,120]
[357153926,1743803440285,-500.0,0.00049314,120]
[357153927,1743803440294,-634.23,0.00049314,120]
[357153928,1743803440304,-500.0,0.00049314,12]
[357153929,1743803440313,-500.0,0.00049314,120]
[357153930,1743803440322,-500.0,0.00049314,120]
[357153931,1743803440332,-500.0,0.00049314,120]
[357153932,1743803440341,-500.0,0.00049314,120]
[357153933,1743803440351,-500.0,0.00049314,120]
[357153934,1743803440361,-500.0,0.00049314,120]
[357153935,1743803440373,-500.0,0.00049315,120]
[357153936,1743803440383,-607.34,0.00049315,120]
[357153937,1743803440392,-500.0,0.00049315,120]
[357153938,1743803440402,-500.0,0.00049315,120]
[357153939,1743803440411,-500.0,0.00049315,120]
[357153940,1743803440421,-1329.11,0.00049315,10]
[357153941,1743803440432,-150.0,0.00049315,120]
[357153942,1743803440441,-500.0,0.00049315,30]
[357153943,1743803440451,-2000.0,0.00049315,2]
[357153944,1743803440461,-500.0,0.00049315,120]
[357153945,1743803440472,-500.0,0.00049315,120]
[357153946,1743803440482,-500.0,0.00049315,120]
[357153947,1743803440491,-500.0,0.00049315,120]
[357153948,1743803440501,-2296.64,0.00049315,2]
[357153949,1743803440511,-736.26,0.00049315,120]
[357153950,1743803440520,-500.0,0.00049315,7]
[357153951,1743803440530,-500.0,0.00049315,120]
[357153952,1743803440539,-678.96,0.00049315,120]
[357153953,1743803440549,-500.0,0.00049315,120]
[357153954,1743803440559,-500.0,0.00049315,120]
[357153955,1743803440571,-500.0,0.00049315,120]
[357153956,1743803440581,-500.0,0.00049315,120]
[357153957,1743803440591,-468.72812274,0.00049315,120]
[357153958,1743803440600,-500.0,0.00049315,120]
[357153959,1743803440611,-500.0,0.00049315,120]
[357153960,1743803440621,-500.0,0.00049315,120]
[357153961,1743803440630,-596.52,0.00049315,120]
[357153962,1743803440642,-500.0,0.00049315,120]
[357153963,1743803440652,-655.87901281,0.00049315,120]
[357153964,1743803440662,-655.87901281,0.00049315,120]
[357153965,1743803440671,-655.87901281,0.00049315,120]
[357153966,1743803440681,-655.87901281,0.00049315,120]
[357153967,1743803440691,-655.87901281,0.00049315,120]
[357153968,1743803440701,-655.87901281,0.00049315,120]
[357153969,1743803440711,-655.87901281,0.00049315,120]
[357153970,1743803440721,-655.87901281,0.00049315,120]
[357153971,1743803440732,-655.87901281,0.00049315,120]
[357153972,1743803440743,-655.87901281,0.00049315,120]
[357153973,1743803440752,-655.87901281,0.00049315,120]
[357153974,1743803440762,-655.87901281,0.00049315,120]
[357153975,1743803440771,-655.87901281,0.00049315,120]
[357153976,1743803440780,-655.87901281,0.00049315,120]
[357153977,1743803440790,-500.0,0.00049315,120]
[357153978,1743803440799,-500.0,0.00049315,120]
[357153979,1743803440808,-500.0,0.00049315,120]
[357153980,1743803440818,-655.87901281,0.00049315,120]
[357153981,1743803440827,-500.0,0.00049315,120]
[357153982,1743803440838,-500.0,0.00049315,120]
[357153983,1743803440850,-655.87901281,0.00049315,120]
[357153984,1743803440862,-500.0,0.00049315,120]
[357153985,1743803440871,-655.87901281,0.00049315,120]
[357153986,1743803440882,-500.0,0.00049315,120]
[357153987,1743803440891,-500.0,0.00049315,120]
[357153988,1743803440900,-500.0,0.00049315,120]
[357153989,1743803440910,-375.52204752,0.00049315,120]
[357153990,1743803440919,-500.0,0.00049315,120]
[357153991,1743803440929,-500.0,0.00049315,120]
[357153992,1743803440938,-500.0,0.00049315,120]
[357153993,1743803440948,-500.0,0.00049315,120]
[357153994,1743803440959,-500.0,0.00049315,120]
[357153995,1743803440969,-500.0,0.00049315,120]
[357153996,1743803440979,-500.0,0.00049315,120]
[357153997,1743803440989,-500.0,0.00049315,120]
[357153998,1743803440999,-500.0,0.00049315,120]
[357153999,1743803441008,-153.0,0.00049315,90]
[357154000,1743803441017,-153.0,0.00049315,90]
[357154001,1743803441027,-153.0,0.00049315,90]
[357154002,1743803441038,-153.0,0.00049315,90]
[357154003,1743803441048,-153.0,0.00049315,90]
[357154004,1743803441058,-153.0,0.00049315,90]
[357154005,1743803441068,-153.0,0.00049315,90]
[357154006,1743803441078,-153.0,0.00049315,90]
[357154007,1743803441087,-153.0,0.00049315,90]
[357154008,1743803441096,-153.0,0.00049315,90]
[357154009,1743803441105,-153.0,0.00049315,90]
[357154010,1743803441114,-153.0,0.00049315,90]
[357154011,1743803441123,-153.0,0.00049315,90]
[357154012,1743803441133,-153.0,0.00049315,90]
[357154013,1743803441145,-153.0,0.00049315,90]
[357154014,1743803441154,-153.0,0.00049315,90]
[357154015,1743803441164,-153.0,0.00049315,90]
[357154016,1743803441174,-153.0,0.00049315,90]
[357154017,1743803441183,-153.0,0.00049315,90]
[357154018,1743803441192,-153.0,0.00049315,90]
[357154019,1743803441201,-153.0,0.00049315,90]
[357154020,1743803441210,-153.0,0.00049315,90]
[357154021,1743803441219,-153.0,0.00049315,90]
[357154022,1743803441228,-153.0,0.00049315,90]
[357154023,1743803441236,-153.0,0.00049315,90]
[357154024,1743803441246,-153.0,0.00049315,90]
[357154025,1743803441255,-153.0,0.00049315,90]
[357154026,1743803441264,-153.0,0.00049315,90]
[357154027,1743803441273,-153.0,0.00049315,90]
[357154028,1743803441282,-153.0,0.00049315,90]
[357154029,1743803441291,-153.0,0.00049315,90]
[357154030,1743803441301,-153.0,0.00049315,90]
[357154031,1743803441310,-153.0,0.00049315,90]
[357154032,1743803441319,-153.0,0.00049315,90]
[357154033,1743803441328,-153.0,0.00049315,90]
[357154034,1743803441337,-153.0,0.00049315,90]
[357154035,1743803441346,-153.0,0.00049315,90]
[357154036,1743803441355,-153.0,0.00049315,90]
[357154037,1743803441364,-153.0,0.00049315,90]
[357154038,1743803441373,-153.0,0.00049315,90]
[357154039,1743803441383,-153.0,0.00049315,90]
[357154040,1743803441392,-153.0,0.00049315,90]
[357154041,1743803441401,-153.0,0.00049315,90]
[357154042,1743803441411,-153.0,0.00049315,90]
[357154043,1743803441420,-153.0,0.00049315,90]
[357154044,1743803441429,-153.0,0.00049315,90]
[357154045,1743803441439,-153.0,0.00049315,90]
[357154046,1743803441448,-153.0,0.00049315,90]
[357154047,1743803441457,-153.0,0.00049315,90]
[357154048,1743803441467,-153.0,0.00049315,90]
[357154049,1743803441476,-153.0,0.00049315,90]
[357154050,1743803441485,-153.0,0.00049315,90]
[357154051,1743803441495,-153.0,0.00049315,90]
[357154052,1743803441505,-153.0,0.00049315,90]
[357154053,1743803441515,-153.0,0.00049315,90]
[357154054,1743803441524,-153.0,0.00049315,90]
[357154055,1743803441533,-153.0,0.00049315,90]
[357154056,1743803441542,-153.0,0.00049315,90]
[357154057,1743803441552,-153.0,0.00049315,90]
[357154058,1743803441564,-153.0,0.00049315,90]
[357154059,1743803441573,-153.0,0.00049315,90]
[357154060,1743803441582,-153.0,0.00049315,90]
[357154061,1743803441592,-153.0,0.00049315,90]
[357154062,1743803441602,-153.0,0.00049315,90]
[357154063,1743803441612,-153.0,0.00049315,90]
[357154064,1743803441622,-153.0,0.00049315,90]
[357154065,1743803441631,-153.0,0.00049315,90]
[357154066,1743803441642,-153.0,0.00049315,90]
[357154067,1743803441651,-153.0,0.00049315,90]
[357154068,1743803441660,-350.0,0.00049315,20]
[357154069,1743803441669,-153.0,0.00049315,90]
[357154070,1743803441678,-153.0,0.00049315,90]
[357154071,1743803441690,-153.0,0.00049315,90]
[357154072,1743803441701,-153.0,0.00049315,90]
[357154073,1743803441711,-153.0,0.00049315,90]
[357154074,1743803441721,-153.0,0.00049315,90]
[357154075,1743803441730,-153.0,0.00049315,90]
[357154076,1743803441742,-153.0,0.00049315,90]
[357154077,1743803441751,-153.0,0.00049315,90]
[357154078,1743803441760,-153.0,0.00049315,90]
[357154079,1743803441769,-153.0,0.00049315,90]
[357154080,1743803441780,-153.0,0.00049315,90]
[357154081,1743803441789,-153.0,0.00049315,90]
[357154082,1743803441798,-153.0,0.00049315,90]
[357154083,1743803441807,-153.0,0.00049315,90]
[357154084,1743803441817,-153.0,0.00049315,90]
[357154085,1743803441826,-153.0,0.00049315,90]
[357154086,1743803441835,-153.0,0.00049315,90]
[357154087,1743803441844,-153.0,0.00049315,90]
[357154088,1743803441853,-153.0,0.00049315,90]
[357154089,1743803441862,-153.0,0.00049315,90]
[357154090,1743803441871,-153.0,0.00049315,90]
[357154091,1743803441880,-160.0,0.00049315,90]
[357154092,1743803441889,-160.0,0.00049315,90]
[357154093,1743803441898,-160.0,0.00049315,90]
[357154094,1743803441907,-160.0,0.00049315,90]
[357154095,1743803441916,-160.0,0.00049315,90]
[357154096,1743803441925,-160.0,0.00049315,90]
[357154097,1743803441934,-160.0,0.00049315,90]
[357154098,1743803441944,-160.0,0.00049315,90]
[357154099,1743803442074,-160.0,0.00049315,90]
[357154100,1743803442084,-1979.18829682,0.00049343,15]
[357154101,1743803442093,-2500.0,0.0004935,30]
[357154102,1743803442103,-505.63831938,0.0004936,10]
[357154103,1743803442112,-500.0,0.0004936,2]
[357154104,1743803442124,-309.98002876,0.0004936,10]
[357154105,1743803442134,-152.62423943,0.0004936,10]
[357154106,1743803442144,-2500.0,0.00049367,30]
[357154107,1743803442155,-764.21746112,0.00049385,15]
[357154108,1743803442164,-150.0,0.0004944,7]
[357154109,1743803442175,-150.0,0.00049448,7]
[357154110,1743803442184,-150.0,0.00049451,7]
[357154111,1743803442194,-1979.18829682,0.00049452,15]
[357154112,1743803442204,-794.85,0.00049453,2]
[357154113,1743803442213,-2798.33,0.00049453,30]
[357154114,1743803442223,-764.21746112,0.00049473,15]
[357154115,1743803442232,-12890.5122198,0.00049478,4]
[357154116,1743803442241,-2205.35,0.00049478,2]
[357154117,1743803442250,-500.0,0.00049488,100]
[357154118,1743803442259,-500.0,0.00049488,120]
[357154119,1743803442269,-560.24,0.00049488,120]
[357154120,1743803442279,-500.0,0.00049488,120]
[357154121,1743803442289,-500.0,0.00049488,10]
[357154122,1743803442298,-500.0,0.00049488,120]
[357154123,1743803442307,-500.0,0.00049488,120]
[357154124,1743803442316,-583.6,0.00049488,120]
[357154125,1743803442325,-500.0,0.00049488,120]
[357154126,1743803442334,-1356.37,0.00049488,120]
[357154127,1743803442343,-3581.51,0.00049488,7]
[357154128,1743803442352,-500.0,0.00049488,120]
[357154129,1743803442363,-860.98,0.00049488,120]
[357154130,1743803442373,-500.0,0.00049488,120]
[357154131,1743803442383,-1301.5,0.00049488,120]
[357154132,1743803442394,-500.0,0.00049488,120]
[357154133,1743803442403,-515.43,0.00049488,120]
[357154134,1743803442413,-1353.6,0.00049488,120]
[357154135,1743803442422,-500.0,0.00049488,120]
[357154136,1743803442431,-936.25,0.00049488,120]
[357154137,1743803442442,-500.0,0.00049488,120]
[357154138,1743803442451,-608.49,0.00049488,120]
[357154139,1743803442460,-708.91,0.00049488,120]
[357154140,1743803442470,-3600.44,0.00049488,120]
[357154141,1743803442479,-500.0,0.00049488,120]
[357154142,1743803442488,-500.0,0.00049488,120]
[357154143,1743803442497,-500.0,0.00049488,120]
[357154144,1743803442506,-10791.06,0.00049488,2]
[357154145,1743803442515,-500.0,0.00049488,120]
[357154146,1743803442524,-500.0,0.00049488,120]
[357154147,1743803442533,-500.0,0.00049488,120]
[357154148,1743803442542,-695.12,0.00049488,120]
[357154149,1743803442551,-1035.94,0.00049488,120]
[357154150,1743803442562,-500.0,0.00049488,120]
[357154151,1743803442573,-599.69,0.00049488,120]
[357154152,1743803442583,-500.0,0.00049488,120]
[357154153,1743803442592,-1928.54,0.00049488,120]
[357154154,1743803442602,-500.0,0.00049488,120]
[357154155,1743803442611,-591.7,0.00049488,120]
[357154156,1743803442620,-500.0,0.00049488,120]
[357154157,1743803442630,-500.0,0.00049488,120]
[357154159,1743803442642,-500.0,0.00049488,120]
[357154161,1743803442652,-564.0439911,0.00049488,120]
[357154162,1743803442661,-10495.9242,0.00049489,2]
[357154163,1743803442672,-960.4836,0.00049489,2]
[357154164,1743803442681,-2026.1297,0.00049489,2]
[357154165,1743803442691,-150.0,0.00049543,7]
[357154166,1743803442700,-764.21746112,0.00049561,15]
[357154167,1743803442710,-12890.5122198,0.00049563,4]
[357154168,1743803442720,-500.0,0.00049573,2]
[357154169,1743803442729,-500.0,0.00049573,2]
[357154170,1743803442738,-500.0,0.00049573,120]
[357154171,1743803442747,-500.0,0.00049573,120]
[357154172,1743803442756,-500.0,0.00049573,120]
[357154173,1743803442766,-443.31980339,0.00049573,120]
[357154174,1743803442775,-353.41474762,0.00049573,120]
[357154175,1743803442784,-610.37,0.00049573,120]
[357154176,1743803442793,-399.52699011,0.00049573,120]
[357154177,1743803442803,-500.0,0.00049573,120]
[357154178,1743803442813,-525.77649167,0.00049573,30]
[357154179,1743803442823,-519.52,0.00049573,120]
[357154180,1743803442832,-500.0,0.00049573,120]
[357154181,1743803442841,-500.0,0.00049573,120]
[357154182,1743803442850,-525.85,0.00049573,120]
[357154183,1743803442859,-500.0,0.00049573,120]
[357154184,1743803442868,-500.0,0.00049573,120]
[357154185,1743803442877,-500.0,0.00049573,120]
[357154186,1743803442887,-730.87,0.00049573,120]
[357154187,1743803442896,-743.25,0.00049573,120]
[357154188,1743803442905,-500.0,0.00049573,120]
[357154189,1743803442915,-528.89,0.00049573,120]
[357154190,1743803442924,-500.0,0.00049573,2]
[357154191,1743803442933,-500.0,0.00049573,120]
[357154192,1743803442943,-12890.5122198,0.00049579,4]
[357154193,1743803442953,-38671.5366593,0.0004958,4]
[357154194,1743803442963,-500.0,0.00049588,120]
[357154195,1743803442973,-694.72,0.00049588,120]
[357154196,1743803442983,-500.0,0.00049588,120]
[357154197,1743803442993,-500.0,0.00049588,30]
[357154198,1743803443002,-500.0,0.00049588,120]
[357154199,1743803443011,-500.0,0.00049588,120]
[357154200,1743803443020,-274.17171197,0.00049588,120]
[357154201,1743803443166,-500.0,0.00049214,120]
[357154202,1743803443175,-500.0,0.00049214,120]
[357154203,1743803443184,-500.0,0.00049214,2]
[357154204,1743803443194,-500.0,0.00049488,120]
[357154205,1743803443203,-500.0,0.00049488,2]
[357154206,1743803443212,-1979.18829682,0.00049562,15]
[357154207,1743803443221,-360.05828803,0.00049588,120]
[357154208,1743803443230,-500.0,0.00049588,12]
[357154209,1743803443239,-500.0,0.00049588,120]
[357154211,1743803443248,-500.0,0.00049588,120]
[357154213,1743803443258,-500.0,0.00049588,120]
[357154215,1743803443266,-500.0,0.00049588,120]
[357154217,1743803443275,-500.0,0.00049588,120]
[357154219,1743803443285,-500.0,0.00049588,120]
[357154221,1743803443294,-227.40613226,0.00049589,120]
[357154223,1743803443303,-607.34,0.00049589,120]
[357154225,1743803443312,-500.0,0.00049589,120]
[357154226,1743803443321,-500.0,0.00049589,120]
[357154228,1743803443330,-500.0,0.00049589,120]
[357154231,1743803443340,-1329.11,0.00049589,10]
[357154233,1743803443350,-500.0,0.00049589,30]
[357154235,1743803443359,-2000.0,0.00049589,2]
[357154237,1743803443369,-500.0,0.00049589,120]
[357154239,1743803443378,-500.0,0.00049589,120]
[357154240,1743803443387,-500.0,0.00049589,120]
[357154242,1743803443396,-500.0,0.00049589,120]
[357154244,1743803443405,-2296.64,0.00049589,2]
[357154246,1743803443415,-736.26,0.00049589,120]
[357154248,1743803443424,-500.0,0.00049589,7]
[357154250,1743803443434,-500.0,0.00049589,120]
[357154252,1743803443443,-678.96,0.00049589,120]
[357154255,1743803443453,-500.0,0.00049589,120]
[357154258,1743803443462,-500.0,0.00049589,120]
[357154261,1743803443471,-500.0,0.00049589,120]
[357154263,1743803443480,-500.0,0.00049589,120]
[357154266,1743803443489,-500.0,0.00049589,120]
[357154269,1743803443499,-500.0,0.00049589,120]
[357154270,1743803443508,-500.0,0.00049589,120]
[357154272,1743803443518,-596.52,0.00049589,120]
[357154274,1743803443528,-67823.14506638,0.0004959,2]
[357154276,1743803443537,-150.0,0.00049646,7]
[357154278,1743803443547,-764.21746112,0.00049648,15]
[357154280,1743803443558,-12890.5122198,0.00049666,4]
[357154282,1743803443571,-16994.4999,0.00049676,2]
[357154284,1743803443581,-150.0,0.00049707,7]
[357154286,1743803443591,-150.0,0.00049725,7]
[357154288,1743803443600,-150.0,0.00049725,7]
[357154290,1743803443611,-2500.0,0.00049736,30]
[357154292,1743803443620,-345.478,0.00049754,2]
[357154293,1743803443630,-150.0,0.00049754,7]
[357154294,1743803443639,-7197.2303814,0.00049755,4]
[357154295,1743803443649,-150.0,0.00049755,7]
[357154296,1743803443658,-500.0,0.00049762,120]
[357154297,1743803443667,-560.24,0.00049762,120]
[357154298,1743803443676,-500.0,0.00049762,120]
[357154299,1743803443687,-500.0,0.00049762,10]
[357154300,1743803443696,-500.0,0.00049762,120]
[357154301,1743803443706,-500.0,0.00049762,120]
[357154302,1743803443715,-583.6,0.00049762,120]
[357154303,1743803443725,-500.0,0.00049762,120]
[357154304,1743803443735,-1356.37,0.00049762,120]
[357154305,1743803443745,-3581.51,0.00049762,7]
[357154306,1743803443755,-500.0,0.00049762,120]
[357154307,1743803443764,-500.0,0.00049762,120]
[357154308,1743803443774,-860.98,0.00049762,120]
[357154309,1743803443783,-1301.5,0.00049762,120]
[357154310,1743803443792,-500.0,0.00049762,120]
[357154311,1743803443801,-515.43,0.00049762,120]
[357154312,1743803443810,-1353.6,0.00049762,120]
[357154313,1743803443819,-500.0,0.00049762,120]
[357154314,1743803443828,-936.25,0.00049762,120]
[357154315,1743803443837,-500.0,0.00049762,120]
[357154316,1743803443846,-708.91,0.00049762,120]
[357154317,1743803443856,-3600.44,0.00049762,120]
[357154318,1743803443865,-500.0,0.00049762,120]
[357154319,1743803443874,-608.49,0.00049762,120]
[357154320,1743803443884,-500.0,0.00049762,120]
[357154321,1743803443893,-500.0,0.00049762,120]
[357154322,1743803443902,-10791.06,0.00049762,2]
[357154323,1743803443911,-500.0,0.00049762,120]
[357154324,1743803443920,-500.0,0.00049762,120]
[357154325,1743803443929,-500.0,0.00049762,120]
[357154326,1743803443939,-695.12,0.00049762,120]
[357154327,1743803443948,-1035.94,0.00049762,120]
[357154328,1743803443957,-500.0,0.00049762,120]
[357154329,1743803443966,-599.69,0.00049762,120]
[357154330,1743803443976,-500.0,0.00049762,120]
[357154331,1743803443985,-500.0,0.00049762,120]
[357154332,1743803443994,-1928.54,0.00049762,120]
[357154333,1743803444003,-591.7,0.00049762,120]
[357154334,1743803444011,-500.0,0.00049762,120]
[357154335,1743803444020,-500.0,0.00049762,120]
[357154336,1743803444029,-500.0,0.00049762,120]
[357154337,1743803444038,-500.0,0.00049762,120]
[357154338,1743803444047,-150.0,0.00049764,7]
[357154339,1743803444056,-1000.0,0.00049764,30]
[357154340,1743803444065,-150.0,0.00049786,7]
[357154341,1743803444074,-150.0,0.00049793,7]
[357154342,1743803444083,-150.0,0.00049795,7]
[357154343,1743803444092,-150.0,0.00049804,7]
[357154344,1743803444101,-150.0,0.00049815,7]
[357154345,1743803444110,-150.0,0.00049822,7]
[357154346,1743803444119,-150.0,0.00049825,7]
[357154347,1743803444128,-150.0,0.00049828,7]
[357154348,1743803444137,-12890.5122198,0.00049837,4]
[357154349,1743803444146,-150.0,0.00049841,7]
[357154350,1743803444155,-150.0,0.00049843,7]
[357154351,1743803444164,-500.0,0.00049847,2]
[357154352,1743803444173,-500.0,0.00049847,120]
[357154353,1743803444182,-500.0,0.00049847,120]
[357154354,1743803444192,-500.0,0.00049847,120]
[357154355,1743803444202,-610.37,0.00049847,120]
[357154356,1743803444211,-500.0,0.00049847,120]
[357154357,1743803444221,-519.52,0.00049847,120]
[357154358,1743803444230,-500.0,0.00049847,120]
[357154359,1743803444239,-500.0,0.00049847,120]
[357154360,1743803444247,-525.85,0.00049847,120]
[357154361,1743803444257,-500.0,0.00049847,120]
[357154362,1743803444266,-500.0,0.00049847,120]
[357154363,1743803444275,-500.0,0.00049847,120]
[357154364,1743803444284,-730.87,0.00049847,120]
[357154365,1743803444292,-743.25,0.00049847,120]
[357154366,1743803444302,-528.89,0.00049847,120]
[357154367,1743803444312,-500.0,0.00049847,2]
[357154368,1743803444321,-500.0,0.00049847,120]
[357154369,1743803444330,-150.0,0.00049848,7]
[357154370,1743803444339,-150.0,0.0004985,7]
[357154371,1743803444348,-7197.2303814,0.0004985,4]
[357154372,1743803444358,-7197.2303814,0.00049852,4]
[357154373,1743803444367,-12890.5122198,0.00049853,4]
[357154374,1743803444376,-7197.2303814,0.00049853,4]
[357154375,1743803444386,-150.0,0.00049856,7]
[357154376,1743803444396,-500.0,0.00049862,120]
[357154377,1743803444405,-694.72,0.00049862,120]
[357154378,1743803444414,-500.0,0.00049862,120]
[357154379,1743803444424,-500.0,0.00049862,30]
[357154380,1743803444433,-500.0,0.00049862,120]
[357154381,1743803444442,-500.0,0.00049862,120]
[357154382,1743803444453,-634.23,0.00049862,120]
[357154383,1743803444462,-500.0,0.00049862,12]
[357154384,1743803444473,-500.0,0.00049862,120]
[357154385,1743803444482,-500.0,0.00049862,120]
[357154386,1743803444491,-500.0,0.00049862,120]
[357154387,1743803444500,-500.0,0.00049862,120]
[357154388,1743803444510,-500.0,0.00049862,120]
[357154389,1743803444519,-500.0,0.00049862,120]
[357154390,1743803444528,-607.34,0.00049863,120]